[Event "British Rapidplay Championship 2023"]
[Site "Mercure Bradford, Bankfield Hotel"]
[Date "2023.04.15"]
[Round "4.7"]
[White "Walker, David J"]
[Black "Vijayakumar, Rishi"]
[Result "1/2-1/2"]
[TimeControl "15 minutes plus 10 seconds per move"]
[WhiteElo "2250"]
[BlackElo "1770"]

1. c4 {[%clk 00:15:15]} {[%emt 00:00:05]} e5 {[%clk 00:15:07]} {[%emt
00:00:14]} 2. Nc3 {[%clk 00:15:23]} {[%emt 00:00:02]} Nf6 {[%clk 00:15:16]}
{[%emt 00:00:01]} 3. g3 {[%clk 00:15:29]} {[%emt 00:00:03]} d5 {[%clk
00:15:22]} {[%emt 00:00:04]} 4. cxd5 {[%clk 00:15:35]} {[%emt 00:00:04]} Nxd5
{[%clk 00:15:31]} {[%emt 00:00:02]} 5. Bg2 {[%clk 00:15:43]} {[%emt 00:00:02]}
Nb6 {[%clk 00:15:31]} {[%emt 00:00:10]} 6. e3 {[%clk 00:15:49]} {[%emt
00:00:04]} Nc6 {[%clk 00:15:37]} {[%emt 00:00:05]} 7. Nge2 {[%clk 00:15:54]}
{[%emt 00:00:04]} Be6 {[%clk 00:15:27]} {[%emt 00:00:20]} 8. d4 {[%clk
00:15:35]} {[%emt 00:00:28]} exd4 {[%clk 00:14:13]} {[%emt 00:01:24]} 9. exd4
{[%clk 00:14:59]} {[%emt 00:00:47]} Nd5 {[%clk 00:12:58]} {[%emt 00:01:25]} 10.
O-O {[%clk 00:14:38]} {[%emt 00:00:30]} Be7 {[%clk 00:12:19]} {[%emt 00:00:49]}
11. Be3 {[%clk 00:14:00]} {[%emt 00:00:48]} O-O {[%clk 00:11:37]} {[%emt
00:00:52]} 12. Rc1 {[%clk 00:13:50]} {[%emt 00:00:20]} Nxc3 {[%clk 00:10:10]}
{[%emt 00:01:38]} 13. Nxc3 {[%clk 00:13:31]} {[%emt 00:00:28]} Nb4 {[%clk
00:08:41]} {[%emt 00:01:40]} 14. a3 {[%clk 00:11:57]} {[%emt 00:01:45]} Nd5
{[%clk 00:07:54]} {[%emt 00:00:56]} 15. Nxd5 {[%clk 00:12:02]} {[%emt
00:00:05]} Bxd5 {[%clk 00:08:02]} {[%emt 00:00:01]} 16. Bxd5 {[%clk 00:12:10]}
{[%emt 00:00:02]} Qxd5 {[%clk 00:08:11]} {[%emt 00:00:01]} 17. Rxc7 {[%clk
00:12:17]} {[%emt 00:00:02]} Bd6 {[%clk 00:07:38]} {[%emt 00:00:43]} 18. Rc3
{[%clk 00:12:18]} {[%emt 00:00:09]} Rac8 {[%clk 00:06:02]} {[%emt 00:01:46]} 19.
Rxc8 {[%clk 00:10:50]} {[%emt 00:01:39]} Rxc8 {[%clk 00:06:10]} {[%emt
00:00:01]} 20. Qd2 {[%clk 00:10:55]} {[%emt 00:00:05]} Qc4 {[%clk 00:04:21]}
{[%emt 00:02:00]} 21. Rc1 {[%clk 00:05:29]} {[%emt 00:05:35]} Qxc1+ {[%clk
00:04:27]} {[%emt 00:00:04]} 22. Qxc1 {[%clk 00:05:38]} Rxc1+ {[%clk 00:04:36]}
{[%emt 00:00:01]} 23. Bxc1 {[%clk 00:05:47]} Kf8 {[%clk 00:03:55]} {[%emt
00:00:51]} 24. Kg2 {[%clk 00:05:40]} {[%emt 00:00:18]} Ke7 {[%clk 00:04:03]} 25.
Kf3 {[%clk 00:05:44]} {[%emt 00:00:06]} Ke6 {[%clk 00:04:12]} {[%emt 00:00:01]}
26. Ke4 {[%clk 00:05:52]} {[%emt 00:00:02]} f5+ {[%clk 00:04:21]} 27. Kd3
{[%clk 00:06:01]} {[%emt 00:00:02]} Kd5 {[%clk 00:04:30]} {[%emt 00:00:01]} 28.
Bd2 {[%clk 00:05:44]} {[%emt 00:00:27]} Be7 {[%clk 00:04:26]} {[%emt 00:00:14]}
29. f3 {[%clk 00:04:44]} {[%emt 00:01:10]} Bf6 {[%clk 00:04:18]} {[%emt
00:00:17]} 30. Be3 {[%clk 00:04:51]} {[%emt 00:00:03]} g6 {[%clk 00:04:22]}
{[%emt 00:00:07]} 31. b3 {[%clk 00:03:44]} {[%emt 00:01:17]} a6 {[%clk
00:03:56]} {[%emt 00:00:36]} 32. a4 {[%clk 00:03:50]} {[%emt 00:00:04]} Bg7
{[%clk 00:03:46]} {[%emt 00:00:20]} 33. h3 {[%clk 00:03:54]} {[%emt 00:00:06]}
Bf6 {[%clk 00:03:51]} {[%emt 00:00:05]} 34. g4 {[%clk 00:04:01]} {[%emt
00:00:02]} h5 {[%clk 00:03:12]} {[%emt 00:00:49]} 35. gxh5 {[%clk 00:03:09]}
{[%emt 00:01:03]} gxh5 {[%clk 00:03:17]} {[%emt 00:00:05]} 36. Kc3 {[%clk
00:03:16]} {[%emt 00:00:02]} Bg7 {[%clk 00:02:26]} {[%emt 00:01:01]} 37. Kd3
{[%clk 00:02:49]} {[%emt 00:00:36]} 1/2-1/2

[Event "British Rapidplay Championship 2023"]
[Site "Mercure Bradford, Bankfield Hotel"]
[Date "2023.04.15"]
[Round "4.8"]
[White "Mosnegutu, Klauss"]
[Black "Lau, Luke"]
[Result "0-1"]
[TimeControl "15 minutes plus 10 seconds per move"]
[WhiteElo "2229"]
[BlackElo "1917"]

1. d4 {[%clk 00:15:18]} d5 {[%clk 00:15:13]} {[%emt 00:00:07]} 2. c4 {[%clk
00:15:27]} {[%emt 00:00:02]} e6 {[%clk 00:15:22]} {[%emt 00:00:01]} 3. Nc3
{[%clk 00:15:35]} {[%emt 00:00:01]} Nf6 {[%clk 00:15:31]} {[%emt 00:00:02]} 4.
Bg5 {[%clk 00:15:44]} Be7 {[%clk 00:15:39]} {[%emt 00:00:01]} 5. e3 {[%clk
00:15:52]} {[%emt 00:00:02]} h6 {[%clk 00:15:48]} 6. Bh4 {[%clk 00:15:53]}
{[%emt 00:00:10]} dxc4 {[%clk 00:15:56]} {[%emt 00:00:03]} 7. Bxc4 {[%clk
00:16:00]} {[%emt 00:00:02]} c5 {[%clk 00:16:05]} {[%emt 00:00:01]} 8. dxc5
{[%clk 00:16:02]} {[%emt 00:00:09]} Qxd1+ {[%clk 00:16:13]} 9. Rxd1 {[%clk
00:16:10]} {[%emt 00:00:04]} Nbd7 {[%clk 00:16:20]} {[%emt 00:00:02]} 10. Nb5
{[%clk 00:16:11]} {[%emt 00:00:09]} O-O {[%clk 00:16:25]} {[%emt 00:00:06]} 11.
Nf3 {[%clk 00:12:26]} {[%emt 00:03:55]} Nxc5 {[%clk 00:12:24]} {[%emt
00:04:11]} 12. O-O {[%clk 00:11:47]} {[%emt 00:00:50]} a6 {[%clk 00:11:03]}
{[%emt 00:01:31]} 13. Nd6 {[%clk 00:11:35]} {[%emt 00:00:21]} b5 {[%clk
00:10:51]} {[%emt 00:00:22]} 14. b4 {[%clk 00:10:31]} {[%emt 00:01:14]} Bxd6
{[%clk 00:09:14]} {[%emt 00:01:47]} 15. bxc5 {[%clk 00:09:44]} {[%emt
00:00:57]} Bxc5 {[%clk 00:09:10]} {[%emt 00:00:13]} 16. Bxf6 {[%clk 00:07:48]}
{[%emt 00:02:06]} gxf6 {[%clk 00:08:38]} {[%emt 00:00:42]} 17. Bb3 {[%clk
00:07:41]} {[%emt 00:00:17]} Bb7 {[%clk 00:08:23]} {[%emt 00:00:25]} 18. Rd7
{[%clk 00:05:32]} {[%emt 00:02:19]} Be4 {[%clk 00:06:43]} {[%emt 00:01:50]} 19.
Rc1 {[%clk 00:03:38]} {[%emt 00:02:04]} Rfc8 {[%clk 00:06:21]} {[%emt
00:00:32]} 20. h3 {[%clk 00:02:32]} {[%emt 00:01:17]} a5 {[%clk 00:05:41]}
{[%emt 00:00:50]} 0-1

[Event "British Rapidplay Championship 2023"]
[Site "Mercure Bradford, Bankfield Hotel"]
[Date "2023.04.15"]
[Round "4.9"]
[White "McCarthy, Damian M"]
[Black "Surtees, Mike J"]
[Result "1-0"]
[TimeControl "15 minutes plus 10 seconds per move"]
[WhiteElo "1860"]
[BlackElo "2111"]

1. e4 {[%clk 00:15:08]} {[%emt 00:00:10]} c6 {[%clk 00:15:18]} {[%emt
00:00:02]} 2. d4 {[%clk 00:15:17]} {[%emt 00:00:02]} d5 {[%clk 00:15:27]} 3.
Nd2 {[%clk 00:15:15]} {[%emt 00:00:13]} dxe4 {[%clk 00:15:22]} {[%emt
00:00:14]} 4. Nxe4 {[%clk 00:15:22]} {[%emt 00:00:03]} Bf5 {[%clk 00:15:29]}
{[%emt 00:00:02]} 5. Ng3 {[%clk 00:15:29]} {[%emt 00:00:03]} Bg6 {[%clk
00:15:38]} {[%emt 00:00:02]} 6. h4 {[%clk 00:15:35]} {[%emt 00:00:04]} h6
{[%clk 00:15:43]} {[%emt 00:00:05]} 7. Nf3 {[%clk 00:15:42]} {[%emt 00:00:03]}
Nd7 {[%clk 00:15:43]} {[%emt 00:00:09]} 8. h5 {[%clk 00:15:48]} {[%emt
00:00:04]} Bh7 {[%clk 00:15:51]} {[%emt 00:00:02]} 9. Bd3 {[%clk 00:15:57]}
{[%emt 00:00:02]} Bxd3 {[%clk 00:15:59]} {[%emt 00:00:02]} 10. Qxd3 {[%clk
00:16:05]} {[%emt 00:00:02]} Ngf6 {[%clk 00:15:55]} {[%emt 00:00:14]} 11. Bd2
{[%clk 00:16:07]} {[%emt 00:00:07]} e6 {[%clk 00:15:57]} {[%emt 00:00:09]} 12.
O-O-O {[%clk 00:16:09]} {[%emt 00:00:08]} Bd6 {[%clk 00:14:49]} {[%emt
00:01:18]} 13. Kb1 {[%clk 00:15:52]} {[%emt 00:00:27]} Qc7 {[%clk 00:14:46]}
{[%emt 00:00:13]} 14. Ne4 {[%emt 00:00:13]} Nxe4 {[%clk 00:14:48]} {[%emt
00:00:05]} 15. Qxe4 {[%clk 00:15:57]} {[%emt 00:00:04]} Nf6 {[%clk 00:14:23]}
{[%emt 00:00:35]} 16. Qe2 {[%clk 00:16:03]} {[%emt 00:00:04]} O-O-O {[%clk
00:13:26]} {[%emt 00:01:08]} 17. g3 {[%clk 00:15:54]} {[%emt 00:00:19]} Kb8
{[%clk 00:13:07]} {[%emt 00:00:29]} 18. c4 {[%clk 00:15:55]} {[%emt 00:00:08]}
Ka8 {[%clk 00:09:07]} {[%emt 00:04:11]} 19. Bc3 {[%clk 00:14:48]} {[%emt
00:01:17]} c5 {[%clk 00:08:14]} {[%emt 00:01:03]} 20. dxc5 {[%clk 00:13:12]}
{[%emt 00:01:46]} Bxc5 {[%clk 00:08:14]} {[%emt 00:00:10]} 21. Ne5 {[%clk
00:13:08]} {[%emt 00:00:14]} a6 {[%clk 00:07:35]} {[%emt 00:00:49]} 22. g4
{[%clk 00:12:41]} {[%emt 00:00:36]} Rhf8 {[%clk 00:06:41]} {[%emt 00:01:05]} 23.
f4 {[%clk 00:11:48]} {[%emt 00:01:03]} Rd6 {[%clk 00:04:03]} {[%emt 00:02:48]}
24. g5 {[%clk 00:11:11]} {[%emt 00:00:46]} Ng8 {[%clk 00:03:40]} {[%emt
00:00:33]} 25. Nd3 {[%clk 00:10:20]} {[%emt 00:01:02]} Bd4 {[%clk 00:03:22]}
{[%emt 00:00:28]} 26. Bb4 {[%clk 00:09:35]} {[%emt 00:00:55]} Rfd8 {[%clk
00:02:59]} {[%emt 00:00:32]} 27. Bxd6 {[%clk 00:09:12]} {[%emt 00:00:34]} Rxd6
{[%clk 00:03:08]} {[%emt 00:00:02]} 28. Ne5 {[%clk 00:08:55]} {[%emt 00:00:26]}
hxg5 {[%clk 00:03:06]} {[%emt 00:00:11]} 29. Nf3 {[%clk 00:08:00]} {[%emt
00:01:05]} Bc5 {[%clk 00:02:50]} {[%emt 00:00:27]} 30. fxg5 {[%clk 00:07:50]}
{[%emt 00:00:20]} Ne7 {[%clk 00:02:22]} {[%emt 00:00:38]} 31. h6 {[%clk
00:07:38]} {[%emt 00:00:22]} gxh6 {[%clk 00:02:23]} {[%emt 00:00:09]} 32. gxh6
{[%clk 00:07:39]} {[%emt 00:00:08]} Rxd1+ {[%clk 00:01:54]} {[%emt 00:00:40]}
33. Qxd1 {[%clk 00:07:25]} {[%emt 00:00:24]} Ng6 {[%clk 00:00:44]} {[%emt
00:01:19]} 34. h7 {[%clk 00:07:02]} {[%emt 00:00:34]} Qc8 {[%clk 00:00:53]}
{[%emt 00:00:01]} 35. Ne5 {[%clk 00:06:13]} {[%emt 00:00:59]} Nh8 {[%clk
00:00:14]} {[%emt 00:00:49]} 36. Qg4 {[%clk 00:04:41]} {[%emt 00:01:41]} Qc7
{[%clk 00:00:00]} {[%emt 00:00:15]} 37. Qd1 {[%clk 00:15:10]} {[%emt 00:00:07]}
1-0

[Event "British Rapidplay Championship 2023"]
[Site "Mercure Bradford, Bankfield Hotel"]
[Date "2023.04.15"]
[Round "4.10"]
[White "Walton, Alan J"]
[Black "Coles, Steven F"]
[Result "1-0"]
[TimeControl "15 minutes plus 10 seconds per move"]
[WhiteElo "2105"]
[BlackElo "1969"]

1. d4 {[%clk 00:15:18]} {[%emt 00:00:02]} Nf6 {[%clk 00:15:18]} {[%emt
00:00:03]} 2. Bg5 {[%clk 00:15:26]} {[%emt 00:00:02]} g6 {[%clk 00:14:49]}
{[%emt 00:00:39]} 3. Nc3 {[%clk 00:15:13]} {[%emt 00:00:23]} Bg7 {[%clk
00:14:42]} {[%emt 00:00:17]} 4. e4 {[%clk 00:15:21]} {[%emt 00:00:01]} d6
{[%clk 00:14:45]} {[%emt 00:00:07]} 5. Qd2 {[%clk 00:15:29]} {[%emt 00:00:02]}
c6 {[%clk 00:14:46]} {[%emt 00:00:09]} 6. h3 {[%clk 00:15:29]} {[%emt
00:00:10]} Qa5 {[%clk 00:14:36]} {[%emt 00:00:20]} 7. Nf3 {[%clk 00:15:09]}
{[%emt 00:00:30]} Nbd7 {[%clk 00:14:32]} {[%emt 00:00:14]} 8. Be2 {[%clk
00:15:05]} {[%emt 00:00:14]} b5 {[%clk 00:14:24]} {[%emt 00:00:19]} 9. e5
{[%clk 00:15:11]} {[%emt 00:00:04]} b4 {[%clk 00:13:53]} {[%emt 00:00:40]} 10.
exf6 {[%clk 00:15:14]} {[%emt 00:00:07]} bxc3 {[%clk 00:13:54]} {[%emt
00:00:09]} 11. fxg7 {[%clk 00:14:55]} {[%emt 00:00:29]} cxd2+ {[%clk 00:12:51]}
{[%emt 00:01:13]} 12. Bxd2 {[%clk 00:15:03]} {[%emt 00:00:02]} Qxd2+ {[%clk
00:12:49]} {[%emt 00:00:12]} 13. Kxd2 {[%clk 00:15:11]} {[%emt 00:00:01]} Rg8
{[%clk 00:12:56]} {[%emt 00:00:03]} 14. c4 {[%clk 00:14:32]} {[%emt 00:00:50]}
Rxg7 {[%clk 00:12:47]} {[%emt 00:00:19]} 15. Rhe1 {[%clk 00:14:31]} {[%emt
00:00:12]} Nf6 {[%clk 00:11:56]} {[%emt 00:01:01]} 16. Bd3 {[%clk 00:14:39]}
{[%emt 00:00:01]} Rb8 {[%clk 00:11:26]} {[%emt 00:00:41]} 17. b3 {[%clk
00:14:40]} {[%emt 00:00:09]} Nh5 {[%clk 00:09:52]} {[%emt 00:01:43]} 18. Ng5
{[%clk 00:13:26]} {[%emt 00:01:24]} Nf4 {[%clk 00:09:36]} {[%emt 00:00:27]} 19.
Bf1 {[%clk 00:13:34]} {[%emt 00:00:02]} f6 {[%clk 00:09:19]} {[%emt 00:00:27]}
20. Ne4 {[%clk 00:13:42]} {[%emt 00:00:01]} Kf7 {[%emt 00:01:33]} 21. Re3
{[%clk 00:12:34]} Bd7 {[%clk 00:07:39]} {[%emt 00:01:46]} 22. Rae1 {[%clk
00:12:40]} {[%emt 00:00:04]} Re8 {[%clk 00:07:35]} {[%emt 00:00:14]} 23. g3
{[%clk 00:12:39]} {[%emt 00:00:10]} Ne6 {[%clk 00:07:24]} {[%emt 00:00:21]} 24.
Kc3 {[%clk 00:12:47]} {[%emt 00:00:02]} Nc7 {[%clk 00:07:25]} {[%emt 00:00:09]}
25. Bg2 {[%clk 00:12:51]} {[%emt 00:00:06]} Rgg8 {[%clk 00:07:27]} {[%emt
00:00:08]} 26. h4 {[%clk 00:12:35]} {[%emt 00:00:27]} h6 {[%clk 00:07:22]}
{[%emt 00:00:13]} 27. b4 {[%clk 00:11:31]} {[%emt 00:01:15]} f5 {[%clk
00:07:23]} {[%emt 00:00:09]} 28. Nd2 {[%clk 00:11:40]} {[%emt 00:00:01]} e6
{[%clk 00:07:24]} {[%emt 00:00:09]} 29. Nb3 {[%clk 00:11:14]} {[%emt 00:00:36]}
Na6 {[%clk 00:06:56]} {[%emt 00:00:39]} 30. a4 {[%clk 00:10:34]} {[%emt
00:00:50]} Rc8 {[%clk 00:06:34]} {[%emt 00:00:32]} 31. d5 {[%clk 00:10:11]}
{[%emt 00:00:33]} cxd5 {[%clk 00:06:22]} {[%emt 00:00:21]} 32. Bxd5 {[%clk
00:10:19]} {[%emt 00:00:01]} Rge8 {[%clk 00:06:23]} {[%emt 00:00:10]} 33. Bb7
{[%clk 00:10:26]} {[%emt 00:00:02]} Nc7 {[%clk 00:05:56]} {[%emt 00:00:38]} 34.
Bxc8 {[%clk 00:10:33]} {[%emt 00:00:04]} Rxc8 {[%clk 00:06:05]} 35. Kd3 {[%clk
00:09:21]} {[%emt 00:01:21]} e5 {[%clk 00:05:46]} {[%emt 00:00:29]} 36. f3
{[%clk 00:08:11]} {[%emt 00:01:20]} Bxa4 {[%clk 00:05:34]} {[%emt 00:00:22]} 37.
Nd2 {[%clk 00:08:20]} {[%emt 00:00:01]} Rb8 {[%clk 00:05:07]} {[%emt 00:00:38]}
38. Ra1 {[%clk 00:08:10]} {[%emt 00:00:20]} Rxb4 {[%clk 00:04:04]} {[%emt
00:01:12]} 39. Kc3 {[%clk 00:08:19]} {[%emt 00:00:01]} Na6 {[%clk 00:04:07]}
{[%emt 00:00:07]} 40. Ree1 {[%clk 00:08:22]} {[%emt 00:00:08]} d5 {[%clk
00:03:58]} {[%emt 00:00:19]} 41. Rxe5 {[%clk 00:08:24]} {[%emt 00:00:07]} dxc4
{[%clk 00:03:52]} {[%emt 00:00:17]} 42. Ra5 {[%emt 00:00:20]} 1-0

[Event "British Rapidplay Championship 2023"]
[Site "Mercure Bradford, Bankfield Hotel"]
[Date "2023.04.15"]
[Round "4.11"]
[White "Eckersley-Waites, Tom"]
[Black "Cheng, Louis"]
[Result "1-0"]
[TimeControl "15 minutes plus 10 seconds per move"]
[WhiteElo "2304"]
[BlackElo "1617"]

1. e4 {[%clk 00:15:15]} {[%emt 00:00:04]} c5 {[%clk 00:15:15]} {[%emt
00:00:06]} 2. Nf3 {[%clk 00:15:23]} {[%emt 00:00:02]} g6 {[%clk 00:15:22]}
{[%emt 00:00:03]} 3. Bc4 {[%clk 00:15:31]} {[%emt 00:00:03]} Bg7 {[%clk
00:15:29]} {[%emt 00:00:02]} 4. c3 {[%clk 00:15:38]} {[%emt 00:00:03]} e6
{[%clk 00:15:33]} {[%emt 00:00:06]} 5. d4 {[%clk 00:15:46]} {[%emt 00:00:02]}
cxd4 {[%clk 00:15:40]} {[%emt 00:00:03]} 6. Nxd4 {[%clk 00:15:54]} {[%emt
00:00:02]} Ne7 {[%clk 00:15:34]} {[%emt 00:00:15]} 7. Nb5 {[%clk 00:14:36]}
{[%emt 00:01:28]} d5 {[%clk 00:15:13]} {[%emt 00:00:32]} 8. exd5 {[%clk
00:14:31]} {[%emt 00:00:15]} exd5 {[%clk 00:15:18]} {[%emt 00:00:05]} 9. Bf4
{[%clk 00:09:33]} {[%emt 00:05:07]} O-O {[%clk 00:13:40]} {[%emt 00:01:49]} 10.
Nc7 {[%clk 00:09:13]} {[%emt 00:00:30]} dxc4 {[%clk 00:12:44]} {[%emt
00:01:06]} 11. Qxd8 {[%clk 00:08:45]} {[%emt 00:00:38]} Rxd8 {[%clk 00:12:51]}
{[%emt 00:00:03]} 12. Nxa8 {[%clk 00:08:52]} {[%emt 00:00:03]} Nd5 {[%clk
00:12:47]} {[%emt 00:00:13]} 13. Bxb8 {[%clk 00:08:18]} {[%emt 00:00:45]} Bg4
{[%clk 00:12:28]} {[%emt 00:00:29]} 14. f3 {[%clk 00:06:22]} {[%emt 00:02:06]}
Bxf3 {[%clk 00:11:28]} {[%emt 00:01:11]} 15. gxf3 {[%clk 00:06:15]} {[%emt
00:00:16]} Rxb8 {[%clk 00:11:36]} {[%emt 00:00:02]} 16. Na3 {[%clk 00:06:15]}
{[%emt 00:00:10]} b5 {[%clk 00:11:20]} {[%emt 00:00:26]} 17. O-O-O {[%clk
00:05:49]} {[%emt 00:00:36]} Ne3 {[%clk 00:11:04]} {[%emt 00:00:26]} 18. Nc7
{[%clk 00:05:52]} {[%emt 00:00:06]} b4 {[%clk 00:10:53]} {[%emt 00:00:22]} 19.
cxb4 {[%clk 00:05:28]} {[%emt 00:00:34]} Nxd1 {[%clk 00:10:55]} {[%emt
00:00:07]} 20. Rxd1 {[%clk 00:05:20]} {[%emt 00:00:19]} Rxb4 {[%clk 00:11:00]}
{[%emt 00:00:06]} 21. Rd8+ {[%clk 00:05:17]} {[%emt 00:00:12]} Bf8 {[%clk
00:11:07]} {[%emt 00:00:03]} 22. Nd5 {[%clk 00:05:25]} {[%emt 00:00:02]} Rb7
{[%clk 00:11:09]} {[%emt 00:00:08]} 23. Nxc4 {[%clk 00:05:09]} {[%emt
00:00:26]} Kg7 {[%clk 00:11:13]} {[%emt 00:00:05]} 24. Kc2 {[%clk 00:04:46]}
{[%emt 00:00:33]} Be7 {[%clk 00:11:03]} {[%emt 00:00:20]} 25. Re8 {[%clk
00:04:38]} {[%emt 00:00:19]} Bf6 {[%clk 00:11:01]} {[%emt 00:00:12]} 26. b4
{[%clk 00:03:53]} {[%emt 00:00:55]} Rd7 {[%clk 00:10:51]} {[%emt 00:00:20]} 27.
Rg8+ {[%clk 00:03:58]} {[%emt 00:00:04]} Kh6 {[%clk 00:10:37]} {[%emt
00:00:25]} 28. Nxf6 {[%clk 00:04:06]} {[%emt 00:00:02]} Rd4 {[%clk 00:10:38]}
{[%emt 00:00:09]} 29. Ne3 {[%clk 00:03:55]} {[%emt 00:00:21]} Rxb4 {[%clk
00:10:41]} {[%emt 00:00:06]} 30. Rh8 {[%clk 00:03:21]} {[%emt 00:00:45]} Kg5
{[%clk 00:10:28]} {[%emt 00:00:23]} 31. Nxh7+ {[%clk 00:03:12]} {[%emt
00:00:19]} Kh6 {[%clk 00:10:31]} {[%emt 00:00:06]} 32. Nf6+ {[%clk 00:03:05]}
{[%emt 00:00:18]} Kg5 {[%clk 00:10:36]} {[%emt 00:00:04]} 33. Ne4+ {[%clk
00:03:03]} {[%emt 00:00:13]} Kf4 {[%clk 00:10:43]} {[%emt 00:00:03]} 34. Nd5+
{[%clk 00:03:11]} {[%emt 00:00:02]} Kxf3 {[%clk 00:10:49]} {[%emt 00:00:04]} 35.
Nd2+ {[%clk 00:03:19]} {[%emt 00:00:02]} Kg2 {[%clk 00:10:52]} {[%emt
00:00:07]} 36. Nxb4 {[%clk 00:03:22]} {[%emt 00:00:08]} f5 {[%clk 00:10:58]}
{[%emt 00:00:04]} 37. Kd1 {[%clk 00:03:30]} {[%emt 00:00:01]} f4 {[%clk
00:11:06]} {[%emt 00:00:02]} 38. Ke2 {[%clk 00:03:39]} {[%emt 00:00:01]} Kh1
{[%clk 00:11:07]} {[%emt 00:00:09]} 39. Kf1 {[%clk 00:03:45]} {[%emt 00:00:04]}
g5 {[%clk 00:11:12]} {[%emt 00:00:05]} 40. Nd3 {[%clk 00:03:53]} {[%emt
00:00:01]} g4 {[%clk 00:11:16]} {[%emt 00:00:07]} 41. Nf2 {[%clk 00:03:51]}
{[%emt 00:00:02]} 1-0

[Event "British Rapidplay Championship 2023"]
[Site "Mercure Bradford, Bankfield Hotel"]
[Date "2023.04.15"]
[Round "4.13"]
[White "Hutchinson, Paul A"]
[Black "Sivanandan, Bodhana"]
[Result "0-1"]
[TimeControl "15 minutes plus 10 seconds per move"]
[WhiteElo "2184"]
[BlackElo "1561"]

1. d4 {[%clk 00:15:04]} {[%emt 00:00:15]} d5 {[%clk 00:15:19]} {[%emt
00:00:01]} 2. Bf4 {[%clk 00:15:12]} {[%emt 00:00:02]} Nf6 {[%clk 00:15:27]}
{[%emt 00:00:03]} 3. e3 {[%clk 00:15:21]} {[%emt 00:00:01]} c5 {[%clk
00:15:35]} 4. Nf3 {[%clk 00:15:29]} {[%emt 00:00:02]} Nc6 {[%clk 00:15:44]}
{[%emt 00:00:02]} 5. Nbd2 {[%clk 00:15:34]} {[%emt 00:00:04]} Bf5 {[%clk
00:15:37]} {[%emt 00:00:17]} 6. dxc5 {[%clk 00:15:41]} {[%emt 00:00:02]} e6
{[%clk 00:15:27]} {[%emt 00:00:20]} 7. Nd4 {[%clk 00:15:49]} {[%emt 00:00:02]}
Bxc5 {[%clk 00:13:57]} {[%emt 00:01:40]} 8. Nxf5 {[%clk 00:15:40]} {[%emt
00:00:19]} exf5 {[%clk 00:14:01]} {[%emt 00:00:06]} 9. c3 {[%clk 00:15:43]}
{[%emt 00:00:07]} O-O {[%clk 00:13:27]} {[%emt 00:00:44]} 10. Nb3 {[%clk
00:15:45]} {[%emt 00:00:08]} Bd6 {[%clk 00:13:27]} {[%emt 00:00:10]} 11. Bxd6
{[%clk 00:15:50]} {[%emt 00:00:05]} Qxd6 {[%clk 00:13:35]} {[%emt 00:00:02]} 12.
Qf3 {[%clk 00:15:25]} {[%emt 00:00:35]} Qe5 {[%clk 00:12:44]} {[%emt 00:01:01]}
13. Bd3 {[%clk 00:15:12]} {[%emt 00:00:23]} Ne4 {[%clk 00:12:27]} {[%emt
00:00:29]} 14. O-O {[%clk 00:15:17]} {[%emt 00:00:04]} Rad8 {[%clk 00:11:44]}
{[%emt 00:00:53]} 15. Rad1 {[%clk 00:15:25]} {[%emt 00:00:02]} g6 {[%clk
00:11:39]} {[%emt 00:00:15]} 16. Qf4 {[%clk 00:15:14]} {[%emt 00:00:21]} Qxf4
{[%clk 00:10:31]} {[%emt 00:01:19]} 17. exf4 {[%clk 00:15:22]} {[%emt
00:00:02]} Rfe8 {[%clk 00:10:19]} {[%emt 00:00:22]} 18. Bc2 {[%clk 00:15:15]}
{[%emt 00:00:17]} b6 {[%clk 00:09:48]} {[%emt 00:00:42]} 19. Rfe1 {[%clk
00:15:14]} {[%emt 00:00:11]} Nf6 {[%clk 00:09:24]} {[%emt 00:00:34]} 20. Rxe8+
{[%clk 00:15:14]} {[%emt 00:00:10]} Rxe8 {[%clk 00:09:31]} {[%emt 00:00:03]} 21.
Kf1 {[%clk 00:15:22]} {[%emt 00:00:02]} Kf8 {[%clk 00:09:11]} {[%emt 00:00:30]}
22. f3 {[%clk 00:14:31]} {[%emt 00:01:01]} Ke7 {[%clk 00:08:28]} {[%emt
00:00:53]} 23. Kf2 {[%clk 00:14:34]} {[%emt 00:00:07]} Kd6 {[%clk 00:08:27]}
{[%emt 00:00:11]} 24. g3 {[%clk 00:14:06]} {[%emt 00:00:38]} b5 {[%clk
00:08:01]} {[%emt 00:00:37]} 25. Nd2 {[%clk 00:11:44]} {[%emt 00:02:32]} a6
{[%clk 00:06:43]} {[%emt 00:01:28]} 26. a4 {[%clk 00:11:20]} {[%emt 00:00:34]}
Re7 {[%clk 00:05:50]} {[%emt 00:01:04]} 27. Ra1 {[%clk 00:09:30]} {[%emt
00:01:59]} Ra7 {[%clk 00:05:17]} {[%emt 00:00:43]} 28. Bd3 {[%clk 00:09:37]}
{[%emt 00:00:03]} b4 {[%clk 00:05:07]} {[%emt 00:00:22]} 29. c4 {[%clk
00:09:20]} {[%emt 00:00:26]} d4 {[%clk 00:04:30]} {[%emt 00:00:46]} 30. a5
{[%clk 00:09:04]} {[%emt 00:00:26]} Nd7 {[%clk 00:04:22]} {[%emt 00:00:18]} 31.
Bc2 {[%clk 00:08:28]} {[%emt 00:00:46]} Nc5 {[%clk 00:04:21]} {[%emt 00:00:12]}
32. Ba4 {[%clk 00:04:10]} {[%emt 00:04:27]} Nxa5 {[%clk 00:03:20]} {[%emt
00:01:11]} 33. Bc2 {[%clk 00:02:47]} {[%emt 00:01:33]} Nc6 {[%clk 00:03:22]}
{[%emt 00:00:08]} 34. Ba4 {[%clk 00:02:37]} {[%emt 00:00:20]} Nxa4 {[%clk
00:02:41]} {[%emt 00:00:50]} 35. Rxa4 {[%clk 00:02:46]} {[%emt 00:00:01]} Kc5
{[%clk 00:02:50]} {[%emt 00:00:02]} 36. Ra1 {[%clk 00:02:29]} {[%emt 00:00:26]}
a5 {[%clk 00:02:44]} {[%emt 00:00:16]} 37. Re1 {[%clk 00:02:14]} {[%emt
00:00:24]} a4 {[%clk 00:02:37]} {[%emt 00:00:18]} 38. Rc1 {[%clk 00:01:52]}
{[%emt 00:00:32]} b3 {[%clk 00:02:11]} {[%emt 00:00:37]} 39. Ra1 {[%clk
00:01:59]} {[%emt 00:00:03]} Kb4 {[%emt 00:00:59]} 40. Rc1 {[%clk 00:01:22]} a3
{[%clk 00:02:05]} {[%emt 00:00:13]} 41. bxa3+ {[%clk 00:01:30]} {[%emt
00:00:01]} Rxa3 {[%clk 00:02:12]} {[%emt 00:00:03]} 42. Ke2 {[%clk 00:01:32]}
{[%emt 00:00:09]} b2 {[%clk 00:01:48]} {[%emt 00:00:34]} 43. Rc2 {[%clk
00:01:23]} {[%emt 00:00:18]} d3+ {[%clk 00:01:53]} {[%emt 00:00:05]} 44. Kd1
{[%clk 00:01:23]} {[%emt 00:00:10]} Ra1+ {[%clk 00:01:54]} {[%emt 00:00:09]}
0-1